[Event "Titled Tuesday Blitz August 1 Early 2023"]
[White "Butti, Enrique"]
[Black "Akhayan, Ruben"]
[WhiteFideId "3700470"]
[BlackFideId "204439"]
[WhiteElo "2167"]
[BlackElo "2312"]
[Result "1-0"]
[Round "6"]
[TimeControl "180+1"]
[Date "2023.08.01"]
[WhiteClock "0:01:09"]
[BlackClock "0:01:09"]
[Board "210"]

1. d4 {[%clk 0:03:00]}  Nf6 {[%clk 0:02:59]} 2. Nf3 {[%clk 0:02:59]}  g6 {[%clk 0:02:59]} 3. e3 {[%clk 0:02:58]}  Bg7 {[%clk 0:03:00]} 4. Bd3 {[%clk 0:02:58]}  O-O {[%clk 0:03:00]} 5. O-O {[%clk 0:02:58]}  b6 {[%clk 0:03:01]} 6. c3 {[%clk 0:02:57]}  Bb7 {[%clk 0:03:01]} 7. Nbd2 {[%clk 0:02:56]}  d6 {[%clk 0:03:02]} 8. e4 {[%clk 0:02:55]}  Nbd7 {[%clk 0:03:02]} 9. Re1 {[%clk 0:02:55]}  e5 {[%clk 0:03:03]} 10. d5 {[%clk 0:02:51]}  Nh5 {[%clk 0:03:00]} 11. Nf1 {[%clk 0:02:50]}  f5 {[%clk 0:02:58]} 12. exf5 {[%clk 0:02:45]}  gxf5 {[%clk 0:02:55]} 13. Ng5 {[%clk 0:02:44]}  Qe8 {[%clk 0:02:49]} 14. Ne6 {[%clk 0:02:36]}  Bxd5 {[%clk 0:02:30]} 15. Nxc7 {[%clk 0:02:25]}  Qf7 {[%clk 0:02:23]} 16. Nxa8 {[%clk 0:02:24]}  Bxa8 {[%clk 0:02:22]} 17. Ng3 {[%clk 0:02:18]}  Nxg3 {[%clk 0:02:21]} 18. hxg3 {[%clk 0:02:18]}  Kh8 {[%clk 0:02:18]} 19. Be2 {[%clk 0:02:10]}  d5 {[%clk 0:02:16]} 20. f4 {[%clk 0:02:04]}  e4 {[%clk 0:02:16]} 21. Be3 {[%clk 0:02:02]}  Qg6 {[%clk 0:02:15]} 22. Kf2 {[%clk 0:01:46]}  Nf6 {[%clk 0:02:14]} 23. Rh1 {[%clk 0:01:43]}  Kg8 {[%clk 0:02:12]} 24. Bd4 {[%clk 0:01:40]}  Nd7 {[%clk 0:02:06]} 25. Bh5 {[%clk 0:01:36]}  Qe6 {[%clk 0:02:02]} 26. Bxg7 {[%clk 0:01:35]}  Kxg7 {[%clk 0:02:02]} 27. Qd4+ {[%clk 0:01:36]}  Kg8 {[%clk 0:02:00]} 28. Ke3 {[%clk 0:01:31]}  Bc6 {[%clk 0:01:55]} 29. Rh4 {[%clk 0:01:30]}  Nf6 {[%clk 0:01:53]} 30. Rah1 {[%clk 0:01:27]}  Rc8 {[%clk 0:01:44]} 31. Qe5 {[%clk 0:01:25]}  Bd7 {[%clk 0:01:39]} 32. Be2 {[%clk 0:01:18]}  a5 {[%clk 0:01:26]} 33. Rh6 {[%clk 0:01:16]}  Kf7 {[%clk 0:01:15]} 34. Rxf6+ {[%clk 0:01:10]}  Qxf6 {[%clk 0:01:14]} 35. Rxh7+ {[%clk 0:01:09]}  Kg6 {[%clk 0:01:09]} 36. Rh6+ {[%clk 0:01:09]} 1-0


[Site "https://www.chess.com"]

[Event "Titled Tuesday Blitz August 1 Early 2023"]
[White "Jiganchine, Roman"]
[Black "LionKing2367890"]
[WhiteFideId "2603667"]
[WhiteElo "2312"]
[BlackElo "2166"]
[Result "0-1"]
[Round "6"]
[TimeControl "180+1"]
[Date "2023.08.01"]
[WhiteClock "0:00:00"]
[BlackClock "0:01:18"]
[Board "211"]

1. e4 {[%clk 0:02:59]}  e5 {[%clk 0:03:00]} 2. Nf3 {[%clk 0:02:54]}  Nc6 {[%clk 0:03:00]} 3. Nc3 {[%clk 0:02:48]}  Nf6 {[%clk 0:03:00]} 4. Bb5 {[%clk 0:02:45]}  Bb4 {[%clk 0:02:57]} 5. O-O {[%clk 0:02:41]}  O-O {[%clk 0:02:57]} 6. Bxc6 {[%clk 0:02:36]}  dxc6 {[%clk 0:02:56]} 7. d3 {[%clk 0:02:34]}  Bxc3 {[%clk 0:02:56]} 8. bxc3 {[%clk 0:02:34]}  Bg4 {[%clk 0:02:56]} 9. h3 {[%clk 0:02:23]}  Bh5 {[%clk 0:02:55]} 10. Kh2 {[%clk 0:02:21]}  Re8 {[%clk 0:02:55]} 11. g4 {[%clk 0:02:13]}  Bg6 {[%clk 0:02:54]} 12. Bg5 {[%clk 0:02:08]}  h6 {[%clk 0:02:54]} 13. Bh4 {[%clk 0:02:05]}  Qd6 {[%clk 0:02:54]} 14. Bg3 {[%clk 0:02:01]}  Rad8 {[%clk 0:02:53]} 15. Qe2 {[%clk 0:02:00]}  c5 {[%clk 0:02:53]} 16. c4 {[%clk 0:01:55]}  a6 {[%clk 0:02:51]} 17. a4 {[%clk 0:01:51]}  c6 {[%clk 0:02:51]} 18. a5 {[%clk 0:01:42]}  Nd7 {[%clk 0:02:38]} 19. Nh4 {[%clk 0:01:28]}  Bh7 {[%clk 0:02:36]} 20. Qe3 {[%clk 0:01:25]}  g5 {[%clk 0:02:33]} 21. Nf5 {[%clk 0:01:20]}  Bxf5 {[%clk 0:02:32]} 22. gxf5 {[%clk 0:01:10]}  Qd4 {[%clk 0:02:33]} 23. Qe2 {[%clk 0:00:56]}  f6 {[%clk 0:02:28]} 24. Rab1 {[%clk 0:00:47]}  Rb8 {[%clk 0:02:27]} 25. Qh5 {[%clk 0:00:46]}  Kg7 {[%clk 0:02:27]} 26. Qg6+ {[%clk 0:00:45]}  Kf8 {[%clk 0:02:25]} 27. Qxh6+ {[%clk 0:00:43]}  Ke7 {[%clk 0:02:25]} 28. Qh5 {[%clk 0:00:19]}  Qc3 {[%clk 0:02:21]} 29. Qe2 {[%clk 0:00:18]}  Qxa5 {[%clk 0:02:20]} 30. Ra1 {[%clk 0:00:16]}  Qc7 {[%clk 0:02:20]} 31. Rfb1 {[%clk 0:00:15]}  a5 {[%clk 0:02:03]} 32. Kg2 {[%clk 0:00:16]}  b5 {[%clk 0:02:00]} 33. Qd2 {[%clk 0:00:15]}  b4 {[%clk 0:02:00]} 34. Ra4 {[%clk 0:00:14]}  Nb6 {[%clk 0:01:59]} 35. Raa1 {[%clk 0:00:05]}  a4 {[%clk 0:01:57]} 36. Qe2 {[%clk 0:00:05]}  Ra8 {[%clk 0:01:49]} 37. Qe3 {[%clk 0:00:05]}  Qd6 {[%clk 0:01:47]} 38. h4 {[%clk 0:00:04]}  gxh4 {[%clk 0:01:45]} 39. Bxh4 {[%clk 0:00:05]}  Rg8+ {[%clk 0:01:44]} 40. Kf1 {[%clk 0:00:05]}  Rh8 {[%clk 0:01:43]} 41. Bg3 {[%clk 0:00:04]}  a3 {[%clk 0:01:34]} 42. Ke2 {[%clk 0:00:04]}  Na4 {[%clk 0:01:32]} 43. Rh1 {[%clk 0:00:05]}  Nc3+ {[%clk 0:01:31]} 44. Kd2 {[%clk 0:00:05]}  a2 {[%clk 0:01:26]} 45. Rh6 {[%clk 0:00:00]}  Qd4 {[%clk 0:01:18]} 0-1


[Site "https://www.chess.com"]

[Event "Titled Tuesday Blitz August 1 Early 2023"]
[White "Vila Dupla, Aurelio"]
[Black "Ai, Evan"]
[WhiteFideId "2203383"]
[BlackFideId "2094770"]
[WhiteElo "2138"]
[BlackElo "2307"]
[Result "0-1"]
[Round "6"]
[TimeControl "180+1"]
[Date "2023.08.01"]
[WhiteClock "0:00:00"]
[BlackClock "0:00:10"]
[Board "213"]

1. Nf3 {[%clk 0:03:00]}  Nf6 {[%clk 0:02:50]} 2. d4 {[%clk 0:03:00]}  e6 {[%clk 0:02:50]} 3. g3 {[%clk 0:03:00]}  d5 {[%clk 0:02:50]} 4. Bg2 {[%clk 0:03:00]}  c5 {[%clk 0:02:49]} 5. O-O {[%clk 0:02:57]}  Nc6 {[%clk 0:02:47]} 6. c4 {[%clk 0:02:52]}  dxc4 {[%clk 0:02:46]} 7. Ne5 {[%clk 0:02:46]}  Bd7 {[%clk 0:02:36]} 8. Nxd7 {[%clk 0:02:35]}  Qxd7 {[%clk 0:02:24]} 9. dxc5 {[%clk 0:02:35]}  Bxc5 {[%clk 0:02:18]} 10. Qc2 {[%clk 0:02:29]}  O-O {[%clk 0:02:04]} 11. Qxc4 {[%clk 0:02:17]}  Qe7 {[%clk 0:01:53]} 12. Bg5 {[%clk 0:02:09]}  Ne5 {[%clk 0:01:44]} 13. Qh4 {[%clk 0:01:49]}  Ng6 {[%clk 0:01:27]} 14. Bxf6 {[%clk 0:01:34]}  Qxf6 {[%clk 0:01:28]} 15. Qxf6 {[%clk 0:01:34]}  gxf6 {[%clk 0:01:29]} 16. Nc3 {[%clk 0:01:34]}  Rad8 {[%clk 0:01:22]} 17. Rfd1 {[%clk 0:01:30]}  b6 {[%clk 0:01:17]} 18. Ne4 {[%clk 0:01:21]}  Be7 {[%clk 0:01:16]} 19. h4 {[%clk 0:01:21]}  f5 {[%clk 0:01:12]} 20. Ng5 {[%clk 0:01:16]}  h6 {[%clk 0:01:02]} 21. Nf3 {[%clk 0:01:15]}  Bf6 {[%clk 0:00:54]} 22. Rxd8 {[%clk 0:00:58]}  Rxd8 {[%clk 0:00:55]} 23. Rb1 {[%clk 0:00:58]}  Rc8 {[%clk 0:00:55]} 24. a4 {[%clk 0:00:42]}  Rc2 {[%clk 0:00:47]} 25. e3 {[%clk 0:00:42]}  Rxb2 {[%clk 0:00:41]} 26. Rxb2 {[%clk 0:00:42]}  Bxb2 {[%clk 0:00:42]} 27. Nd2 {[%clk 0:00:42]}  Ne5 {[%clk 0:00:39]} 28. Nb3 {[%clk 0:00:39]}  Bc3 {[%clk 0:00:33]} 29. Kf1 {[%clk 0:00:39]}  Nc4 {[%clk 0:00:29]} 30. Ke2 {[%clk 0:00:29]}  Bb4 {[%clk 0:00:26]} 31. Bc6 {[%clk 0:00:26]}  Kf8 {[%clk 0:00:22]} 32. Bb5 {[%clk 0:00:26]}  Nd6 {[%clk 0:00:20]} 33. Bc6 {[%clk 0:00:26]}  Ke7 {[%clk 0:00:20]} 34. Nd4 {[%clk 0:00:25]}  Nc4 {[%clk 0:00:19]} 35. Nb5 {[%clk 0:00:24]}  a6 {[%clk 0:00:19]} 36. Nd4 {[%clk 0:00:23]}  Kd6 {[%clk 0:00:18]} 37. Be8 {[%clk 0:00:20]}  f6 {[%clk 0:00:16]} 38. Bf7 {[%clk 0:00:20]}  Nb2 {[%clk 0:00:15]} 39. Bxe6 {[%clk 0:00:19]}  Nxa4 {[%clk 0:00:15]} 40. Bxf5 {[%clk 0:00:18]}  Nc5 {[%clk 0:00:14]} 41. Bb1 {[%clk 0:00:18]}  a5 {[%clk 0:00:14]} 42. Nc2 {[%clk 0:00:14]}  Bc3 {[%clk 0:00:14]} 43. Na3 {[%clk 0:00:12]}  Kc6 {[%clk 0:00:13]} 44. Kd1 {[%clk 0:00:09]}  b5 {[%clk 0:00:13]} 45. Kc2 {[%clk 0:00:09]}  b4 {[%clk 0:00:13]} 46. Nc4 {[%clk 0:00:09]}  a4 {[%clk 0:00:13]} 47. Na3 {[%clk 0:00:05]}  Ba1 {[%clk 0:00:13]} 48. Nc4 {[%clk 0:00:04]}  b3+ {[%clk 0:00:12]} 49. Kd1 {[%clk 0:00:04]}  Kb5 {[%clk 0:00:12]} 50. Na3+ {[%clk 0:00:03]}  Kb4 {[%clk 0:00:11]} 51. Nc2+ {[%clk 0:00:02]}  bxc2+ {[%clk 0:00:12]} 52. Kxc2 {[%clk 0:00:02]}  Bc3 {[%clk 0:00:12]} 53. f4 {[%clk 0:00:02]}  Ne4 {[%clk 0:00:12]} 54. g4 {[%clk 0:00:01]}  Nf2 {[%clk 0:00:12]} 55. g5 {[%clk 0:00:01]}  hxg5 {[%clk 0:00:12]} 56. hxg5 {[%clk 0:00:01]}  fxg5 {[%clk 0:00:13]} 57. fxg5 {[%clk 0:00:01]}  Ng4 {[%clk 0:00:14]} 58. g6 {[%clk 0:00:01]}  Nxe3+ {[%clk 0:00:14]} 59. Kd3 {[%clk 0:00:01]}  Nd5 {[%clk 0:00:14]} 60. Ke4 {[%clk 0:00:02]}  Ne7 {[%clk 0:00:13]} 61. g7 {[%clk 0:00:01]}  Bxg7 {[%clk 0:00:13]} 62. Kd3 {[%clk 0:00:02]}  Bb2 {[%clk 0:00:13]} 63. Ba2 {[%clk 0:00:01]}  Nc6 {[%clk 0:00:12]} 64. Be6 {[%clk 0:00:01]}  Ne5+ {[%clk 0:00:11]} 65. Kc2 {[%clk 0:00:00]}  Bd4 {[%clk 0:00:10]} 0-1


[Site "https://www.chess.com"]

[Event "Titled Tuesday Blitz August 1 Early 2023"]
[White "Kaminski, Victor"]
[Black "Winkels, Marcel"]
[WhiteFideId "1131630"]
[BlackFideId "1003887"]
[WhiteElo "2298"]
[BlackElo "2101"]
[Result "1-0"]
[Round "6"]
[TimeControl "180+1"]
[Date "2023.08.01"]
[WhiteClock "0:02:05"]
[BlackClock "0:00:00"]
[Board "216"]

1. e4 {[%clk 0:03:00]}  c5 {[%clk 0:02:57]} 2. Nf3 {[%clk 0:03:00]}  e6 {[%clk 0:02:57]} 3. d4 {[%clk 0:02:59]}  cxd4 {[%clk 0:02:57]} 4. Nxd4 {[%clk 0:02:59]}  Nc6 {[%clk 0:02:57]} 5. Nc3 {[%clk 0:02:57]}  Qc7 {[%clk 0:02:57]} 6. g4 {[%clk 0:02:47]}  a6 {[%clk 0:02:42]} 7. h4 {[%clk 0:02:45]}  b5 {[%clk 0:02:35]} 8. Nxc6 {[%clk 0:02:37]}  Qxc6 {[%clk 0:02:29]} 9. a3 {[%clk 0:02:36]}  Bb7 {[%clk 0:02:07]} 10. Rh3 {[%clk 0:02:34]}  b4 {[%clk 0:01:58]} 11. axb4 {[%clk 0:02:35]}  Bxb4 {[%clk 0:01:55]} 12. Bd2 {[%clk 0:02:35]}  Nf6 {[%clk 0:01:46]} 13. e5 {[%clk 0:02:35]}  Bxc3 {[%clk 0:01:14]} 14. Rxc3 {[%clk 0:02:29]}  Qe4+ {[%clk 0:01:10]} 15. Re3 {[%clk 0:02:28]}  Qxg4 {[%clk 0:00:59]} 16. exf6 {[%clk 0:02:28]}  Qxh4 {[%clk 0:00:52]} 17. fxg7 {[%clk 0:02:24]}  Rg8 {[%clk 0:00:50]} 18. Bc3 {[%clk 0:02:22]}  O-O-O {[%clk 0:00:44]} 19. Qd4 {[%clk 0:02:13]}  Qxd4 {[%clk 0:00:24]} 20. Bxd4 {[%clk 0:02:14]}  d5 {[%clk 0:00:25]} 21. Bxa6 {[%clk 0:02:10]}  Rde8 {[%clk 0:00:17]} 22. Rc3+ {[%clk 0:02:09]}  Kb8 {[%clk 0:00:17]} 23. Be5+ {[%clk 0:02:06]}  Ka8 {[%clk 0:00:00]} 24. Bb5+ {[%clk 0:02:05]} 1-0


[Site "https://www.chess.com"]

[Event "Titled Tuesday Blitz August 1 Early 2023"]
[White "Lakshmi C"]
[Black "Ziatdinov, Raset"]
[WhiteFideId "25035347"]
[BlackFideId "2015323"]
[WhiteElo "2076"]
[BlackElo "2297"]
[Result "1/2-1/2"]
[Round "6"]
[TimeControl "180+1"]
[Date "2023.08.01"]
[WhiteClock "0:00:09"]
[BlackClock "0:00:35"]
[Board "217"]

1. e4 {[%clk 0:03:00]}  e6 {[%clk 0:02:59]} 2. d4 {[%clk 0:03:00]}  d5 {[%clk 0:03:00]} 3. exd5 {[%clk 0:02:59]}  exd5 {[%clk 0:03:00]} 4. Nf3 {[%clk 0:02:59]}  Nf6 {[%clk 0:03:01]} 5. Bd3 {[%clk 0:02:59]}  Bd6 {[%clk 0:03:01]} 6. O-O {[%clk 0:02:58]}  O-O {[%clk 0:03:02]} 7. Nc3 {[%clk 0:02:56]}  c6 {[%clk 0:03:00]} 8. Ne2 {[%clk 0:02:55]}  Bg4 {[%clk 0:03:00]} 9. Ng3 {[%clk 0:02:54]}  Nbd7 {[%clk 0:03:00]} 10. h3 {[%clk 0:02:28]}  Bxg3 {[%clk 0:02:55]} 11. fxg3 {[%clk 0:02:28]}  Bh5 {[%clk 0:02:53]} 12. Bg5 {[%clk 0:02:19]}  Qb6 {[%clk 0:02:50]} 13. g4 {[%clk 0:02:12]}  Bg6 {[%clk 0:02:47]} 14. Rb1 {[%clk 0:01:50]}  Rae8 {[%clk 0:02:37]} 15. c3 {[%clk 0:01:43]}  Bxd3 {[%clk 0:02:28]} 16. Qxd3 {[%clk 0:01:42]}  Ne4 {[%clk 0:02:29]} 17. Bf4 {[%clk 0:01:41]}  f6 {[%clk 0:02:10]} 18. c4 {[%clk 0:01:04]}  Re6 {[%clk 0:02:02]} 19. b4 {[%clk 0:00:58]}  Rfe8 {[%clk 0:02:00]} 20. c5 {[%clk 0:00:54]}  Qd8 {[%clk 0:01:55]} 21. b5 {[%clk 0:00:51]}  Qa5 {[%clk 0:01:40]} 22. bxc6 {[%clk 0:00:47]}  bxc6 {[%clk 0:01:40]} 23. Rb7 {[%clk 0:00:46]}  Nf8 {[%clk 0:01:39]} 24. a3 {[%clk 0:00:34]}  Ng6 {[%clk 0:01:39]} 25. Bc7 {[%clk 0:00:34]}  Qa4 {[%clk 0:01:33]} 26. Rb4 {[%clk 0:00:32]}  Nf4 {[%clk 0:01:02]} 27. Bxf4 {[%clk 0:00:32]}  Qa5 {[%clk 0:01:02]} 28. Rb7 {[%clk 0:00:28]}  R6e7 {[%clk 0:00:53]} 29. Rxe7 {[%clk 0:00:20]}  Rxe7 {[%clk 0:00:54]} 30. Rb1 {[%clk 0:00:20]}  Kf7 {[%clk 0:00:46]} 31. Bd6 {[%clk 0:00:19]}  Rd7 {[%clk 0:00:40]} 32. Bf4 {[%clk 0:00:16]}  Re7 {[%clk 0:00:40]} 33. Bd2 {[%clk 0:00:11]}  Qa4 {[%clk 0:00:36]} 34. Bf4 {[%clk 0:00:09]}  Qa5 {[%clk 0:00:35]} 1/2-1/2


[Site "https://www.chess.com"]

[Event "Titled Tuesday Blitz August 1 Early 2023"]
[White "Fernandez Siles, Luis"]
[Black "Gopal, K.N."]
[WhiteFideId "2209420"]
[BlackFideId "5001447"]
[WhiteElo "2286"]
[BlackElo "2046"]
[Result "1-0"]
[Round "6"]
[TimeControl "180+1"]
[Date "2023.08.01"]
[WhiteClock "0:00:50"]
[BlackClock "0:00:05"]
[Board "218"]

1. e4 {[%clk 0:03:00]}  Nc6 {[%clk 0:02:08]} 2. Nf3 {[%clk 0:02:55]}  d6 {[%clk 0:02:04]} 3. d4 {[%clk 0:02:50]}  Nf6 {[%clk 0:02:03]} 4. Nc3 {[%clk 0:02:49]}  g6 {[%clk 0:02:02]} 5. h3 {[%clk 0:02:46]}  Bg7 {[%clk 0:02:02]} 6. Be3 {[%clk 0:02:44]}  O-O {[%clk 0:02:02]} 7. Qd2 {[%clk 0:02:43]}  Re8 {[%clk 0:02:01]} 8. O-O-O {[%clk 0:02:41]}  a6 {[%clk 0:01:56]} 9. g4 {[%clk 0:02:36]}  b5 {[%clk 0:01:55]} 10. Bd3 {[%clk 0:02:24]}  b4 {[%clk 0:01:53]} 11. Nd5 {[%clk 0:02:24]}  a5 {[%clk 0:01:44]} 12. Nxf6+ {[%clk 0:02:00]}  exf6 {[%clk 0:01:41]} 13. d5 {[%clk 0:01:55]}  Ne5 {[%clk 0:01:38]} 14. Nd4 {[%clk 0:01:54]}  Nxd3+ {[%clk 0:01:30]} 15. cxd3 {[%clk 0:01:53]}  Bd7 {[%clk 0:01:30]} 16. Kb1 {[%clk 0:01:52]}  Qb8 {[%clk 0:01:19]} 17. Rc1 {[%clk 0:01:49]}  Ra6 {[%clk 0:01:11]} 18. f3 {[%clk 0:01:48]}  a4 {[%clk 0:00:59]} 19. h4 {[%clk 0:01:44]}  b3 {[%clk 0:00:50]} 20. a3 {[%clk 0:01:44]}  Rc8 {[%clk 0:00:35]} 21. Rc4 {[%clk 0:01:37]}  c5 {[%clk 0:00:34]} 22. dxc6 {[%clk 0:01:36]}  Bxc6 {[%clk 0:00:33]} 23. Rhc1 {[%clk 0:01:26]}  Bd7 {[%clk 0:00:33]} 24. Nb5 {[%clk 0:01:07]}  Rxc4 {[%clk 0:00:20]} 25. dxc4 {[%clk 0:01:06]}  f5 {[%clk 0:00:16]} 26. Nc3 {[%clk 0:00:59]}  Rc6 {[%clk 0:00:14]} 27. Nd5 {[%clk 0:00:57]}  Rc5 {[%clk 0:00:14]} 28. gxf5 {[%clk 0:00:56]}  Rc6 {[%clk 0:00:06]} 29. f6 {[%clk 0:00:54]}  Bf8 {[%clk 0:00:05]} 30. Bh6 {[%clk 0:00:51]}  Be7 {[%clk 0:00:06]} 31. Nxe7+ {[%clk 0:00:50]}  Kh8 {[%clk 0:00:05]} 32. Bg7# {[%clk 0:00:50]} 1-0


[Site "https://www.chess.com"]

[Event "Titled Tuesday Blitz August 1 Early 2023"]
[White "Mikhaylova, Irina"]
[Black "Slayyy_200"]
[WhiteFideId "4109040"]
[WhiteElo "2236"]
[BlackElo "2042"]
[Result "1-0"]
[Round "6"]
[TimeControl "180+1"]
[Date "2023.08.01"]
[WhiteClock "0:02:02"]
[BlackClock "0:00:17"]
[Board "220"]

1. Nf3 {[%clk 0:02:59]}  Nf6 {[%clk 0:02:59]} 2. c4 {[%clk 0:02:55]}  c5 {[%clk 0:02:57]} 3. Nc3 {[%clk 0:02:54]}  Nc6 {[%clk 0:02:55]} 4. d4 {[%clk 0:02:54]}  cxd4 {[%clk 0:02:55]} 5. Nxd4 {[%clk 0:02:55]}  g6 {[%clk 0:02:54]} 6. e4 {[%clk 0:02:54]}  Bg7 {[%clk 0:02:53]} 7. Be3 {[%clk 0:02:54]}  O-O {[%clk 0:02:52]} 8. Be2 {[%clk 0:02:54]}  d6 {[%clk 0:02:52]} 9. O-O {[%clk 0:02:54]}  a6 {[%clk 0:02:46]} 10. Rc1 {[%clk 0:02:53]}  Nxd4 {[%clk 0:02:38]} 11. Bxd4 {[%clk 0:02:53]}  Be6 {[%clk 0:02:30]} 12. Qd2 {[%clk 0:02:45]}  Rc8 {[%clk 0:02:28]} 13. b3 {[%clk 0:02:45]}  h5 {[%clk 0:02:25]} 14. f3 {[%clk 0:02:45]}  Kh7 {[%clk 0:02:22]} 15. Be3 {[%clk 0:02:40]}  Qd7 {[%clk 0:02:05]} 16. Rfd1 {[%clk 0:02:39]}  Rfd8 {[%clk 0:02:00]} 17. Na4 {[%clk 0:02:39]}  Qc7 {[%clk 0:01:48]} 18. Bb6 {[%clk 0:02:37]}  Qb8 {[%clk 0:01:24]} 19. Bxd8 {[%clk 0:02:37]}  Bh6 {[%clk 0:01:21]} 20. f4 {[%clk 0:02:24]}  Nxe4 {[%clk 0:01:08]} 21. Qe3 {[%clk 0:02:18]}  Rxd8 {[%clk 0:00:46]} 22. Qxe4 {[%clk 0:02:16]}  Qa7+ {[%clk 0:00:46]} 23. Qd4 {[%clk 0:02:10]}  Qb8 {[%clk 0:00:41]} 24. g3 {[%clk 0:02:05]}  Bg7 {[%clk 0:00:17]} 25. Qe3 {[%clk 0:02:02]} 1-0


[Site "https://www.chess.com"]

[Event "Titled Tuesday Blitz August 1 Early 2023"]
[White "Johnson, Ben"]
[Black "Mishra, Manoj"]
[WhiteFideId "2010917"]
[BlackFideId "5006007"]
[WhiteElo "2129"]
[BlackElo "2224"]
[Result "1/2-1/2"]
[Round "6"]
[TimeControl "180+1"]
[Date "2023.08.01"]
[WhiteClock "0:00:12"]
[BlackClock "0:00:15"]
[Board "222"]

1. Nf3 {[%clk 0:03:00]}  Nf6 {[%clk 0:02:51]} 2. c4 {[%clk 0:02:59]}  g6 {[%clk 0:02:48]} 3. b3 {[%clk 0:02:59]}  Bg7 {[%clk 0:02:47]} 4. Bb2 {[%clk 0:02:59]}  O-O {[%clk 0:02:46]} 5. g3 {[%clk 0:03:00]}  b6 {[%clk 0:02:45]} 6. Bg2 {[%clk 0:03:00]}  Bb7 {[%clk 0:02:46]} 7. O-O {[%clk 0:03:00]}  d6 {[%clk 0:02:46]} 8. d4 {[%clk 0:03:01]}  Nbd7 {[%clk 0:02:45]} 9. Nc3 {[%clk 0:02:58]}  e5 {[%clk 0:02:42]} 10. e3 {[%clk 0:02:53]}  Re8 {[%clk 0:02:37]} 11. Qd2 {[%clk 0:02:32]}  e4 {[%clk 0:02:12]} 12. Ne1 {[%clk 0:02:28]}  Nh5 {[%clk 0:02:12]} 13. d5 {[%clk 0:02:12]}  f5 {[%clk 0:02:07]} 14. Nb5 {[%clk 0:02:07]}  Ne5 {[%clk 0:02:05]} 15. Nd4 {[%clk 0:02:04]}  Nf6 {[%clk 0:01:58]} 16. Ne6 {[%clk 0:02:01]}  Rxe6 {[%clk 0:01:57]} 17. dxe6 {[%clk 0:02:02]}  Qe7 {[%clk 0:01:57]} 18. f3 {[%clk 0:01:45]}  Qxe6 {[%clk 0:01:54]} 19. Rd1 {[%clk 0:01:37]}  Rd8 {[%clk 0:01:36]} 20. f4 {[%clk 0:01:33]}  Ned7 {[%clk 0:01:23]} 21. Nc2 {[%clk 0:01:27]}  Nc5 {[%clk 0:01:19]} 22. Ne1 {[%clk 0:01:12]}  d5 {[%clk 0:01:14]} 23. b4 {[%clk 0:01:08]}  Na4 {[%clk 0:01:01]} 24. Be5 {[%clk 0:00:58]}  Qe7 {[%clk 0:00:44]} 25. a3 {[%clk 0:00:53]}  b5 {[%clk 0:00:42]} 26. c5 {[%clk 0:00:47]}  a5 {[%clk 0:00:39]} 27. Nc2 {[%clk 0:00:36]}  Ng4 {[%clk 0:00:36]} 28. Bxg7 {[%clk 0:00:32]}  Kxg7 {[%clk 0:00:37]} 29. Na1 {[%clk 0:00:26]}  Qf6 {[%clk 0:00:36]} 30. Rc1 {[%clk 0:00:21]}  axb4 {[%clk 0:00:36]} 31. axb4 {[%clk 0:00:21]}  Qb2 {[%clk 0:00:35]} 32. Qxb2+ {[%clk 0:00:20]}  Nxb2 {[%clk 0:00:36]} 33. Rfe1 {[%clk 0:00:20]}  Nd3 {[%clk 0:00:36]} 34. Nb3 {[%clk 0:00:18]}  Ra8 {[%clk 0:00:33]} 35. h3 {[%clk 0:00:17]}  Nxc1 {[%clk 0:00:32]} 36. Nxc1 {[%clk 0:00:18]}  Nf6 {[%clk 0:00:30]} 37. Nb3 {[%clk 0:00:19]}  Ra3 {[%clk 0:00:25]} 38. Na5 {[%clk 0:00:18]}  Ba8 {[%clk 0:00:25]} 39. c6 {[%clk 0:00:17]}  Ne8 {[%clk 0:00:23]} 40. Rd1 {[%clk 0:00:15]}  Rxe3 {[%clk 0:00:18]} 41. Rxd5 {[%clk 0:00:15]}  Nd6 {[%clk 0:00:18]} 42. Bf1 {[%clk 0:00:13]}  Rxg3+ {[%clk 0:00:18]} 43. Kf2 {[%clk 0:00:13]}  Rf3+ {[%clk 0:00:18]} 44. Kg2 {[%clk 0:00:14]}  Rc3 {[%clk 0:00:18]} 45. Bxb5 {[%clk 0:00:14]}  Nxb5 {[%clk 0:00:16]} 46. Rxb5 {[%clk 0:00:15]}  Bxc6 {[%clk 0:00:16]} 47. Nxc6 {[%clk 0:00:14]}  Rxc6 {[%clk 0:00:17]} 48. Rb7 {[%clk 0:00:13]}  Rc2+ {[%clk 0:00:17]} 49. Kg3 {[%clk 0:00:13]}  Kh6 {[%clk 0:00:16]} 50. b5 {[%clk 0:00:13]}  Kh5 {[%clk 0:00:17]} 51. b6 {[%clk 0:00:13]}  Rc3+ {[%clk 0:00:17]} 52. Kf2 {[%clk 0:00:12]}  Rc2+ {[%clk 0:00:15]} 53. Kg3 {[%clk 0:00:12]}  Rc3+ {[%clk 0:00:15]} 54. Kg2 {[%clk 0:00:12]}  Rc2+ {[%clk 0:00:15]} 55. Kg3 {[%clk 0:00:12]} 1/2-1/2


[Site "https://www.chess.com"]